bitfinex-derivatives/quotes_ETHF0:USTF0_20250416
["timestamp","ask_amount","ask_price","bid_price","bid_amount"]
[1744793906294,1.26929,1575.8,1575.7,0.00952502]
[1744793907102,3.03089,1575.8,1575.7,0.00952502]
[1744793909002,7.86189,1575.8,1575.7,0.00952502]
[1744793910998,7.86189,1575.8,1575.7,1.27889502]
[1744793911199,7.86189,1575.8,1575.7,0.00952502]
[1744793911898,7.86189,1575.8,1575.7,1.27889502]
[1744793912099,3.03089,1575.8,1575.7,1.27889502]
[1744793912300,2.08258,1575.9,1575.8,1.26929]
[1744793912907,3.01985,1576.0,1575.9,1.26921]
[1744793914318,1.7507,1576.0,1575.9,1.26921]
[1744793914505,1.27852502,1576.2,1576.1,1.26905]
[1744793914895,0.00952502,1576.2,1576.1,1.26905]
[1744793915202,1.26905,1576.1,1576.0,0.8217]
[1744793915704,1.26905,1576.1,1576.0,2.09083]
[1744793916104,1.76022502,1576.2,1576.0,0.8217]
[1744793916301,3.02925502,1576.2,1576.1,1.26905]
[1744793916811,1.26905,1576.1,1576.0,2.0908]
[1744793917006,3.02325,1576.1,1576.0,2.0908]
[1744793917802,1.26913,1576.0,1575.9,6.10117]
[1744793918006,1.26912,1576.1,1576.0,1.26913]
[1744793918206,3.02332,1576.1,1576.0,1.26913]
[1744793918908,1.7542,1576.1,1576.0,1.26913]
[1744793919210,0.00952502,1576.2,1576.1,1.26905]
[1744793919907,1.26905,1576.1,1576.0,1.26908]
[1744793920109,3.03565,1576.1,1576.0,1.26908]
[1744793920903,1.26929,1575.8,1575.7,0.00952502]
[1744793921712,2.97839,1575.8,1575.7,0.00952502]
[1744793922213,1.7039,1576.0,1575.7,0.00952502]
[1744793922407,4.68221,1576.0,1575.9,1.26921]
[1744793922605,3.80201,1576.0,1575.9,1.26921]
[1744793922810,2.5328,1576.0,1575.9,1.26921]
[1744793923105,1.27855502,1576.2,1576.1,1.26905]
[1744793923300,2.98765502,1576.2,1576.1,1.26905]
[1744793924114,2.98765502,1576.2,1576.1,2.86915]
[1744793924909,0.00952502,1576.2,1576.1,7.86915]
[1744793925513,0.00952502,1576.2,1576.1,2.86915]
[1744793925714,1.27849502,1576.2,1576.1,1.6001]
[1744793926012,1.27849502,1576.2,1576.1,2.86915]
[1744793926214,0.00952502,1576.2,1576.1,2.86915]
[1744793926414,1.27849502,1576.2,1576.1,2.86915]
[1744793927012,1.27849502,1576.2,1576.1,1.6001]
[1744793927217,1.27849502,1576.2,1576.1,2.86915]
[1744793927706,2.93229502,1576.2,1576.1,2.86915]
[1744793935017,1.66332502,1576.2,1576.1,2.86915]
[1744793935220,0.00952502,1576.2,1576.1,2.86915]
[1744793935423,0.00952502,1576.2,1576.1,3.68475]
[1744793935920,1.27849502,1576.2,1576.1,3.68475]
[1744793936320,1.26905,1576.1,1576.0,4.4769]
[1744793936520,2.95445,1576.1,1576.0,4.4769]
[1744793936921,2.95445,1576.1,1576.0,6.1067]
[1744793937318,1.26913,1576.0,1575.9,1.26917]
[1744793937511,2.87243,1576.0,1575.9,1.26917]
[1744793939625,1.2691,1576.1,1576.0,1.26913]
[1744793940116,2.9072,1576.1,1576.0,2.88563]
[1744793940319,2.9072,1576.1,1576.0,1.6165]
[1744793940715,1.26919,1576.0,1575.9,1.26921]
[1744793941023,2.90729,1576.0,1575.9,1.26921]
[1744793941423,1.6381,1576.0,1575.9,1.26921]
[1744793941624,2.90723,1576.0,1575.9,2.88571]
[1744793943121,1.6381,1576.0,1575.9,2.88571]
[1744793943422,4.85217502,1576.2,1576.1,1.26905]
[1744793943423,0.00952502,1576.2,1576.1,1.26905]
[1744793943726,1.27849502,1576.2,1576.1,3.83415]
[1744793945922,2.99389502,1576.2,1576.1,3.83415]
[1744793946327,1.27849502,1576.2,1576.1,3.83415]
[1744793947420,2.95729502,1576.2,1576.1,3.83415]
[1744793948224,1.26921,1575.9,1575.8,0.8278]
[1744793948422,1.26929,1575.8,1575.7,0.00952502]
[1744793948617,4.66889,1575.8,1575.7,0.00952502]
[1744793948932,1.26953,1575.5,1575.4,10.39887023]
[1744793949222,1.26953,1575.5,1575.4,52.90437023]
[1744793949725,1.26953,1575.5,1575.4,56.11217023]
[1744793950627,2.88691,1575.6,1575.5,1.26953]
[1744793951624,1.26953,1575.5,1575.4,47.82555]
[1744793951829,1.7208,1575.8,1575.4,46.556]
[1744793952024,1.26938,1575.7,1575.6,1.26945]
[1744793952224,1.7164,1575.7,1575.6,2.89325]
[1744793952426,2.99016,1575.8,1575.7,1.26937]
[1744793952626,4.70656,1575.8,1575.7,2.89317]
[1744793952924,4.70656,1575.8,1575.7,1.6238]
[1744793953127,1.26937,1575.7,1575.6,1.26939]
[1744793953325,1.26937,1575.7,1575.6,2.89319]
[1744793953726,2.98577,1575.7,1575.6,2.89319]
[1744793955732,1.7164,1575.7,1575.6,2.89319]
[1744793955931,2.98577,1575.7,1575.6,2.89319]
[1744793956434,2.98577,1575.7,1575.5,0.8428]
[1744793956435,1.26951,1575.6,1575.5,1.26949]
[1744793956632,1.26951,1575.6,1575.5,2.98669]
[1744793957033,1.26953,1575.5,1575.4,42.4526]
[1744793957232,2.88643,1575.5,1575.4,42.91232]
[1744793957631,1.26953,1575.5,1575.4,42.91232]
[1744793958141,1.26953,1575.5,1575.4,44.62952]
[1744793958331,1.26953,1575.5,1575.4,47.83732]
[1744793959036,1.26953,1575.5,1575.4,44.62952]
[1744793959235,1.26953,1575.5,1575.4,40.8]
[1744793959438,2.12073,1575.5,1575.4,40.8]
[1744793959638,3.74923,1575.5,1575.4,40.8]
[1744793960439,3.74923,1575.5,1575.4,42.06962]
[1744793960637,3.74923,1575.5,1575.4,40.8]
[1744793960942,1.26962,1575.4,1575.3,0.00952502]
[1744793961141,6.95392,1575.4,1575.3,0.00952502]
[1744793961341,1.27002,1574.9,1574.8,3.2078]
[1744793961541,1.27002,1574.9,1574.8,6.09834]
[1744793962036,3.8507,1575.0,1574.9,1.27002]
[1744793962232,0.848,1575.2,1575.0,1.2699]
[1744793962444,1.26994,1575.1,1575.0,1.26991]
[1744793962639,1.74222502,1575.2,1575.1,1.26986]
[1744793962840,3.01200502,1575.2,1575.1,1.26986]
[1744793963042,1.74222502,1575.2,1575.1,4.47766]
[1744793963444,3.01200502,1575.2,1575.1,4.47766]
[1744793963649,3.01200502,1575.2,1575.1,1.26986]
[1744793964142,1.26986,1575.1,1575.0,2.89036]
[1744793964347,1.6068,1575.1,1575.0,2.89036]
[1744793965743,1.27936502,1575.2,1575.1,1.26986]
[1744793965942,1.27936502,1575.2,1575.1,2.89976]
[1744793966344,2.88616502,1575.2,1575.1,2.89976]
[1744793968753,0.00952502,1575.2,1575.1,6.10756]
[1744793968950,0.00952502,1575.2,1575.1,2.89976]
[1744793969153,1.27930502,1575.2,1575.1,2.89976]
[1744793969349,1.27930502,1575.2,1575.1,6.93906]
[1744793970057,1.27930502,1575.2,1575.1,3.73126]
[1744793970554,2.98630502,1575.2,1575.1,3.73126]
[1744793971753,1.71652502,1575.2,1575.1,3.73126]
[1744793972549,2.98630502,1575.2,1575.1,3.73126]
[1744793973756,3.17465,1575.1,1574.8,0.84232502]
[1744793973957,1.27,1575.0,1574.9,1.26996]
[1744793974959,4.59153,1575.1,1575.0,1.26994]
[1744793975551,0.00952502,1575.2,1575.0,1.26994]
[1744793975756,0.00952502,1575.2,1575.1,1.26986]
[1744793976257,0.00952502,1575.2,1575.1,42.06986]
[1744793976957,1.27930502,1575.2,1575.1,42.06986]
[1744793977158,0.00952502,1575.2,1575.0,2.11848]
[1744793977362,2.93146,1575.1,1575.0,2.11854]
[1744793977559,1.6616,1575.1,1575.0,2.11854]
[1744793977859,1.6616,1575.1,1575.0,42.91854]
[1744793978054,2.93146,1575.1,1575.0,42.91854]
[1744793978860,2.93146,1575.1,1575.0,42.06994]
[1744793979058,3.79276,1575.1,1575.0,42.06994]
[1744793979254,2.5229,1575.1,1574.9,3.2078]
[1744793979461,1.27002,1574.9,1574.8,1.27957502]
[1744793979755,1.27002,1574.9,1574.8,0.00952502]
[1744793979960,3.86272,1574.9,1574.8,0.00952502]
[1744793983855,2.5927,1574.9,1574.8,1.27962502]
[1744793984157,1.27002,1575.0,1574.9,1.26997]
[1744793984555,1.27002,1574.9,1574.8,1.27956502]
[1744793984752,2.98482,1574.9,1574.8,1.27956502]
[1744793985560,1.7148,1574.9,1574.8,1.27956502]
[1744793985861,2.14908,1575.0,1574.9,1.27002]
[1744793986060,1.26998,1575.0,1574.9,1.27002]
[1744793986961,7.06022,1575.1,1575.0,1.26994]
[1744793987661,7.06022,1575.1,1575.0,40.8]
[1744793988057,7.06022,1575.1,1575.0,42.06994]
[1744793989165,7.06022,1575.1,1575.0,40.8]
[1744793989661,7.06022,1575.1,1575.0,42.06994]
[1744793990060,7.06022,1575.1,1575.0,1.26994]
[1744793990463,3.85242,1575.1,1575.0,1.26994]
[1744793990853,1.7212,1575.1,1575.0,1.26994]
[1744793991051,1.26986,1575.1,1575.0,1.26994]
[1744793991253,0.00952502,1575.2,1575.1,1.26986]
[1744793991562,0.00952502,1575.2,1575.1,3.77586]
[1744793991763,0.00952502,1575.2,1575.1,6.98366]
[1744793992058,1.26968,1575.4,1575.3,1.26966]
[1744793992564,2.93662,1575.4,1575.3,42.06966]
[1744793992860,1.667,1575.4,1575.3,43.73866]
[1744793993060,2.10061502,1575.5,1575.4,1.26962]
[1744793993263,3.76761502,1575.5,1575.4,2.93862]
[1744793993962,1.27911502,1575.5,1575.4,2.93862]
[1744793994151,0.00952502,1575.5,1575.4,3.80772]
[1744793994764,1.27905502,1575.5,1575.4,3.80772]
[1744793996373,1.26962,1575.4,1575.3,45.2775]
[1744793996671,1.26962,1575.4,1575.3,43.8146]
[1744793997267,2.97151502,1575.5,1575.4,1.26962]
[1744793997460,2.97151502,1575.5,1575.4,3.01452]
[1744793997767,1.27911502,1575.5,1575.4,3.01452]
[1744793998967,1.26927,1575.9,1575.8,1.26922]
[1744793999159,3.4444,1576.1,1575.7,3.2078]
[1744793999363,1.26929,1575.8,1575.7,1.26935]
[1744793999765,2.98087,1575.9,1575.8,1.26929]
[1744794000066,2.98087,1575.9,1575.8,2.98689]
[1744794000067,2.98081,1575.9,1575.8,2.98689]
[1744794000259,1.7116,1575.9,1575.8,2.98689]
[1744794000463,1.27873502,1576.0,1575.9,1.26921]
[1744794000666,0.00952502,1576.0,1575.9,2.98681]
[1744794000969,0.00952502,1576.0,1575.9,11.19461]
[1744794001170,1.26903,1576.2,1576.1,1.26902]
[1744794001367,1.2691,1576.1,1576.0,1.7607]
[1744794001567,2.872,1576.1,1576.0,3.02983]
[1744794001768,1.6029,1576.1,1576.0,3.02983]
[1744794002169,2.87195,1576.1,1576.0,1.7607]
[1744794002371,1.26913,1576.0,1575.9,4.47697]
[1744794002670,1.6029,1576.0,1575.9,6.23767]
[1744794002869,1.2691,1576.1,1576.0,1.26913]
[1744794003065,2.872,1576.1,1576.0,3.02983]
[1744794003271,0.86272502,1576.2,1576.1,1.26905]
[1744794003575,0.86272502,1576.2,1576.1,3.02975]
[1744794003775,0.00952502,1576.2,1576.1,7.03565]
[1744794003973,0.00952502,1576.2,1576.1,12.03565]
[1744794004276,0.00952502,1576.2,1576.1,7.03565]
[1744794005472,0.8461,1576.6,1576.5,1.26873]
[1744794005675,3.87495,1576.6,1576.5,1.26873]
[1744794005974,2.6063,1576.6,1576.3,3.2078]
[1744794006180,3.02894,1576.5,1576.4,1.26873]
[1744794006479,1.26881,1576.4,1576.3,2.87452]
[1744794006675,3.02901,1576.4,1576.3,2.87452]
[1744794006976,1.7602,1576.4,1576.3,2.87452]
[1744794007174,1.7602,1576.4,1576.3,46.88232]
[1744794007474,1.7602,1576.4,1576.3,43.67452]
[1744794007671,3.02901,1576.4,1576.3,43.67452]
[1744794008877,3.02901,1576.4,1576.3,42.4057]
[1744794009079,3.02901,1576.4,1576.3,43.67459]
[1744794010171,1.7602,1576.4,1576.3,43.67459]
[1744794010573,3.02901,1576.4,1576.3,45.27669]
[1744794011078,1.26897,1576.2,1576.1,1.26904]
[1744794011674,2.95427,1576.2,1576.1,40.8]
[1744794011980,2.95427,1576.2,1576.1,42.06905]
[1744794012373,7.95427,1576.2,1576.1,40.8]
[1744794012678,7.95427,1576.2,1575.8,11.19595]
[1744794012679,1.26918,1576.0,1575.9,1.26913]
[1744794012978,1.26921,1575.9,1575.8,6.08425]
[1744794013165,1.26929,1575.8,1575.7,0.00952502]
[1744794013567,2.99169,1575.8,1575.7,0.00952502]
[1744794014370,2.99169,1575.8,1575.7,1.27889502]
[1744794015280,2.99169,1575.8,1575.7,0.00952502]
[1744794019182,2.99169,1575.8,1575.7,1.27889502]
[1744794019383,2.99169,1575.8,1575.7,0.00952502]
[1744794020388,6.19949,1575.8,1575.7,0.00952502]
[1744794020588,16.01549,1575.8,1575.7,0.00952502]
[1744794020787,3.17364,1575.6,1575.4,40.8]
[1744794020980,4.89595,1575.5,1575.3,0.8369]
[1744794021180,1.2697,1575.3,1575.2,9.734]
[1744794021388,1.2697,1575.3,1575.2,9.29355]
[1744794021580,1.2697,1575.3,1575.2,40.8]
[1744794021779,3.0138,1575.3,1575.2,40.8]
[1744794022182,3.0138,1575.3,1575.2,42.06978]
[1744794022482,1.7441,1575.3,1575.2,1.26978]
[1744794022885,1.7441,1575.3,1575.2,42.06978]
[1744794023184,0.00952502,1575.4,1575.3,1.2697]
[1744794023391,1.74342502,1575.4,1575.3,3.0282]
[1744794023787,0.00952502,1575.4,1575.3,6.236]
[1744794023985,0.00952502,1575.4,1575.3,7.0657]
[1744794024290,2.14155,1575.7,1575.6,1.26945]
[1744794024491,3.87545,1575.7,1575.6,1.26945]
[1744794024690,3.00327,1575.7,1575.6,1.26945]
[1744794025391,1.7339,1575.7,1575.6,1.26945]
[1744794025685,0.00952502,1575.8,1575.7,1.26937]
[1744794026187,0.00952502,1575.8,1575.7,4.47717]
[1744794026388,0.00952502,1575.8,1575.7,11.98397]
[1744794026877,0.00952502,1575.8,1575.7,47.78397]
[1744794028388,1.7082,1576.0,1575.7,52.78397]
[1744794028594,1.26893,1576.3,1576.2,1.26892]
[1744794028893,2.99453,1576.3,1576.2,1.26892]
[1744794029688,0.00627756,1576.4,1576.3,1.26889]
[1744794029896,1.73187756,1576.4,1576.3,1.26889]
[1744794030188,3.00072756,1576.4,1576.3,2.98819]
[1744794030789,1.26896,1576.3,1576.2,1.26895]
[1744794030990,1.26896,1576.3,1576.1,2.99780502]
[1744794030991,1.26897,1576.2,1576.1,2.99780502]
[1744794031687,1.26897,1576.2,1576.1,1.72882502]
[1744794031893,1.26897,1576.2,1576.1,2.99787502]
[1744794034095,2.99455,1576.3,1576.2,1.26897]
[1744794035196,1.26897,1576.2,1576.1,2.99781502]
[1744794035386,2.99455,1576.3,1576.2,1.26897]
[1744794036884,1.27511756,1576.4,1576.3,1.26889]
[1744794037084,2.88551756,1576.4,1576.3,1.26889]
[1744794037693,1.26889,1576.3,1576.2,2.86681]
[1744794037894,3.02909,1576.3,1576.2,2.86681]
[1744794038193,0.00627756,1576.4,1576.2,2.86681]
[1744794038194,1.27508756,1576.4,1576.3,1.26889]
[1744794038491,0.00627756,1576.4,1576.3,2.97739]
[1744794038691,1.27508756,1576.4,1576.3,2.97739]
[1744794038891,3.03528756,1576.4,1576.3,1.7085]
[1744794039085,3.03528756,1576.4,1576.3,2.97739]
[1744794040597,1.26896,1576.3,1576.2,1.26895]
[1744794040894,3.02086,1576.3,1576.2,1.26895]
[1744794042611,0.00627756,1576.4,1576.3,1.26889]
[1744794042813,1.27508756,1576.4,1576.3,1.26889]
[1744794043014,0.00627756,1576.4,1576.3,1.26889]
[1744794043318,1.27508756,1576.4,1576.3,2.90869]
[1744794044312,0.00627756,1576.4,1576.3,2.90869]
[1744794044504,1.27508756,1576.4,1576.3,2.90869]
[1744794045005,1.26897,1576.2,1576.1,1.27852502]
[1744794045204,1.7178,1576.3,1576.2,2.93562]
[1744794045813,2.98676,1576.3,1576.2,2.93562]
[1744794047013,1.26897,1576.2,1576.1,1.27851502]
[1744794047214,1.26897,1576.2,1576.1,0.00952502]
[1744794047215,2.90927,1576.2,1576.1,0.00952502]
[1744794047715,1.26929,1575.8,1575.7,44.0078]
[1744794048010,1.26945,1575.6,1575.5,3.3903]
[1744794048216,6.38092,1575.9,1575.4,3.2078]
[1744794048217,1.26953,1575.5,1575.4,3.2078]
[1744794048410,1.26953,1575.5,1575.4,45.27742]
[1744794049410,1.64982502,1575.6,1575.4,44.0078]
[1744794049713,1.26953,1575.5,1575.4,45.27738]
[1744794049913,1.26953,1575.5,1575.4,44.0078]
[1744794050111,1.26953,1575.5,1575.4,40.8]
[1744794050514,1.26953,1575.5,1575.4,42.06962]
[1744794050709,1.26953,1575.5,1575.4,40.8]
[1744794050910,1.26953,1575.5,1575.4,42.06962]
[1744794051117,1.26953,1575.5,1575.4,40.8]
[1744794051311,1.26962,1575.4,1575.3,3.02115502]
[1744794051512,2.96942,1575.4,1575.3,3.02115502]
[1744794051713,1.6998,1575.4,1575.3,43.82115502]
[1744794051913,2.96942,1575.4,1575.3,43.82115502]
[1744794053820,2.96942,1575.4,1575.3,40.80952502]
[1744794054512,1.26986,1575.1,1575.0,1.26988]
[1744794054713,3.4953,1575.3,1574.9,11.19283]
[1744794054914,3.0375,1575.2,1575.1,1.26986]
[1744794055415,1.7677,1575.2,1575.1,1.26986]
[1744794055720,6.39101502,1575.6,1575.0,45.69154]
[1744794056016,1.26986,1575.1,1575.0,42.07938502]
[1744794056620,1.26986,1575.1,1575.0,43.76018502]
[1744794056918,1.26984,1575.2,1575.1,1.26986]
[1744794057119,2.86444,1575.2,1575.1,1.26986]
[1744794057920,1.26986,1575.1,1575.0,43.76020502]
[1744794058313,2.86444,1575.2,1575.1,1.26986]
[1744794058513,2.86444,1575.2,1575.1,2.95066]
[1744794058709,2.86444,1575.2,1575.1,1.6808]
[1744794058923,1.26986,1575.1,1575.0,42.07942502]
[1744794059123,2.98506,1575.1,1575.0,42.07942502]
[1744794059312,2.98506,1575.1,1575.0,43.72822502]
[1744794059923,1.26975,1575.3,1575.0,42.45832502]
[1744794060123,1.26978,1575.2,1575.1,2.91859]
[1744794060318,1.26975,1575.3,1575.2,1.26978]
[1744794060519,1.26975,1575.3,1575.2,3.72908]
[1744794061225,2.98486,1575.4,1575.3,1.2697]
[1744794061423,1.7152,1575.4,1575.3,2.9185]
[1744794061619,6.20205502,1575.6,1575.5,1.26953]
[1744794062017,1.26953,1575.5,1575.4,3.90635]
[1744794062219,4.93252502,1575.6,1575.5,1.26953]
[1744794062220,6.20203502,1575.6,1575.5,1.26953]
[1744794062414,2.99423502,1575.6,1575.5,1.26953]
[1744794062723,0.00952502,1575.6,1575.5,1.26953]
[1744794062923,0.00952502,1575.6,1575.5,4.47733]
[1744794063228,8.79797,1576.0,1575.5,4.47733]
[1744794063229,0.50907054,1576.1,1575.7,3.17328]
[1744794063525,1.26929,1575.8,1575.7,6.07431]
[1744794063726,1.26929,1575.8,1575.7,9.28211]
[1744794064028,1.26926,1575.9,1575.8,1.26928]
[1744794064218,1.26929,1575.8,1575.7,6.93994]
[1744794064419,1.26929,1575.8,1575.7,6.94946502]
[1744794067028,3.00137,1575.9,1575.8,1.26929]
[1744794067229,1.27867502,1576.0,1575.9,1.26921]
[1744794068330,1.27872502,1576.0,1575.9,1.26921]
[1744794068730,1.26924,1575.9,1575.8,1.26921]
[1744794069123,0.00952502,1576.0,1575.7,12.06130502]
[1744794069324,1.26929,1575.8,1575.7,10.15724502]
[1744794069523,2.91164502,1576.0,1575.9,1.26921]
[1744794069827,1.26926,1575.9,1575.8,1.26921]
[1744794070522,1.26929,1575.8,1575.7,8.02232502]
[1744794070821,2.90219,1575.8,1575.7,1.27889502]
[1744794072331,2.90219,1575.8,1575.7,0.00952502]
[1744794073232,2.90219,1575.8,1575.7,1.27889502]
[1744794075029,2.90219,1575.8,1575.7,0.00952502]
[1744794075334,1.26953,1575.6,1575.5,1.26952]
[1744794075729,2.87133,1575.6,1575.5,1.26952]
[1744794075930,1.26953,1575.5,1575.4,6.07457]
[1744794076139,2.87133,1575.5,1575.4,6.07457]
[1744794076731,0.848,1575.6,1575.5,1.26953]
[1744794077034,3.2078,1575.7,1575.5,1.26953]
[1744794077035,1.2694,1575.7,1575.6,1.26945]
[1744794077236,2.91766,1575.8,1575.7,1.26937]
[1744794077541,1.26928,1575.9,1575.8,1.26929]
[1744794078138,0.00952502,1576.0,1575.9,1.26921]
[1744794078539,0.00952502,1576.0,1575.9,2.14291]
[1744794079039,1.27865502,1576.0,1575.9,0.8737]
[1744794079340,2.92695502,1576.0,1575.9,2.14291]
[1744794080639,2.92695502,1576.0,1575.9,0.8737]
[1744794081433,1.26921,1575.9,1575.8,3.00134]
[1744794081735,2.87771,1575.9,1575.8,3.00134]
[1744794081933,3.17324,1575.8,1575.6,0.8239]
[1744794082134,3.17324,1575.8,1575.2,0.8744]
[1744794082135,1.26962,1575.4,1575.2,0.8744]
[1744794082330,4.47742,1575.4,1575.2,1.26977]
[1744794082531,1.26962,1575.4,1575.3,1.27922502]
[1744794083539,1.26962,1575.4,1575.3,0.00952502]
[1744794084140,2.08592,1575.4,1575.3,0.00952502]
[1744794084339,0.8035,1575.8,1575.3,0.00952502]
[1744794084536,1.6325,1575.8,1575.7,4.47717]
[1744794084834,1.26937,1575.8,1575.7,1.26935]
[1744794085029,1.6528,1575.9,1575.6,11.02339]
[1744794085030,1.26937,1575.7,1575.6,11.02339]
[1744794085229,2.92217,1575.7,1575.6,7.81559]
[1744794085737,1.6528,1575.7,1575.6,7.81559]
[1744794086136,1.26937,1575.7,1575.6,1.7412]
[1744794086342,1.26951,1575.6,1575.5,1.26951]
[1744794086530,2.95452,1575.7,1575.6,1.26945]
[1744794086736,1.6851,1575.7,1575.6,1.26945]
[1744794086941,2.95447,1575.7,1575.6,1.26945]
[1744794087246,1.6851,1575.7,1575.6,2.91055]
[1744794087744,2.95447,1575.7,1575.6,2.91055]
[1744794087938,2.95447,1575.7,1575.6,1.6411]
[1744794088447,1.26945,1575.6,1575.5,3.2078]
[1744794088743,2.95455,1575.6,1575.5,3.2078]
[1744794088943,2.95455,1575.6,1575.5,4.47733]
[1744794089643,1.6851,1575.6,1575.5,4.47733]
[1744794090450,2.95455,1575.6,1575.5,4.47733]
[1744794091246,1.26962,1575.4,1575.3,8.87092502]
[1744794091448,1.26962,1575.4,1575.3,4.06592502]
[1744794091646,1.26962,1575.4,1575.3,0.00952502]
[1744794091839,2.93472,1575.4,1575.3,0.00952502]
[1744794092033,7.93472,1575.4,1575.3,0.00952502]
[1744794092248,1.26986,1575.1,1575.0,3.2078]
[1744794092940,1.26986,1575.1,1575.0,4.47774]
[1744794093945,1.26986,1575.1,1574.9,43.35772502]
[1744794093946,1.26994,1575.0,1574.9,40.80952502]
[1744794094249,1.26994,1575.0,1574.9,42.07954502]
[1744794094250,3.30727642,1575.0,1574.9,42.07954502]
[1744794095153,3.30727642,1575.0,1574.9,40.80952502]
[1744794096948,3.30727642,1575.0,1574.9,0.00952502]
[1744794098446,3.30727642,1575.0,1574.9,1.27954502]
[1744794098750,3.30727642,1575.0,1574.9,0.00952502]
[1744794099152,3.30727642,1575.0,1574.9,1.27954502]
[1744794099348,3.30727642,1575.0,1574.9,0.00952502]
[1744794099537,3.30727642,1575.0,1574.9,1.27954502]
[1744794099741,3.30727642,1575.0,1574.9,0.00952502]
[1744794099942,3.30727642,1575.0,1574.9,1.27954502]
[1744794100141,3.30727642,1575.0,1574.9,2.91444502]
[1744794100142,1.60187642,1575.0,1574.9,2.91444502]
[1744794100749,3.23907642,1575.0,1574.9,0.00952502]
[1744794100949,2.90714,1575.0,1574.9,0.00952502]
[1744794101254,3.57108902,1575.0,1574.9,0.00952502]
[1744794106355,0.66394902,1575.0,1574.9,1.27954502]
[1744794106656,0.00952502,1575.2,1575.1,1.26986]
[1744794106951,1.27930502,1575.2,1575.1,2.12446]
[1744794107255,1.27930502,1575.2,1575.1,3.83236]
[1744794107456,2.95620502,1575.2,1575.1,3.83236]
[1744794108157,3.28821551,1575.2,1575.1,3.83236]
[1744794109057,1.61131551,1575.2,1575.1,3.83236]
[1744794109251,0.34153551,1575.2,1575.1,3.83236]
[1744794109460,0.34153551,1575.2,1575.1,7.04016]
[1744794110055,1.61131551,1575.2,1575.1,7.04016]
[1744794110852,4.47739,1575.5,1575.1,15.5703]
[1744794111155,1.26951,1575.6,1575.5,1.26953]
[1744794111458,1.26953,1575.5,1575.4,3.79656]
[1744794111659,2.91582,1575.6,1575.5,1.26953]
[1744794111959,2.91582,1575.6,1575.5,2.96613]
[1744794112458,2.91582,1575.6,1575.5,1.6966]
[1744794112763,2.91582,1575.6,1575.5,2.96613]
[1744794112954,0.00952502,1575.7,1575.6,1.26945]
[1744794113152,0.00952502,1575.7,1575.6,3.77245]
[1744794114163,1.26945,1575.6,1575.5,1.26949]
[1744794114351,1.26945,1575.6,1575.5,2.89229]
[1744794114854,4.91251502,1575.7,1575.3,3.2078]
[1744794115049,1.26962,1575.4,1575.3,6.10021]
[1744794115451,1.26962,1575.4,1575.3,2.89241]
[1744794115659,1.26962,1575.4,1575.3,1.6228]
[1744794116060,1.60143027,1575.4,1575.3,1.6228]
[1744794116558,1.2697,1575.3,1575.2,2.99831]
[1744794116759,2.9725,1575.3,1575.2,2.99831]
[1744794117054,3.30431027,1575.3,1575.2,4.75031]
[1744794117962,1.26989,1575.1,1575.0,1.26987]
[1744794118256,1.26972,1575.3,1575.2,1.2697]
[1744794118953,2.97252,1575.3,1575.2,1.2697]
[1744794120062,1.26978,1575.2,1575.1,3.02179]
[1744794120658,2.97256,1575.3,1575.2,1.26978]
[1744794120854,2.97256,1575.3,1575.2,2.95688]
[1744794121763,1.26983,1575.2,1575.1,1.26979]
[1744794122068,3.03453,1575.2,1575.1,1.26979]
[1744794122570,3.03453,1575.2,1575.1,2.95689]
[1744794123164,1.26975,1575.3,1575.2,1.26971]
[1744794123367,1.26975,1575.3,1575.2,2.91071]
[1744794123667,3.72508,1575.4,1575.3,1.2697]
[1744794123868,2.08639,1575.6,1575.5,1.26953]
[1744794124069,3.21732502,1575.7,1575.6,1.26945]
[1744794124259,1.27896502,1575.7,1575.6,1.26945]
[1744794124460,0.00952502,1575.7,1575.6,1.26945]
[1744794125364,0.00952502,1575.7,1575.6,4.47725]
[1744794125560,0.00952502,1575.7,1575.6,6.11825]
[1744794125761,0.00952502,1575.7,1575.6,2.91045]
[1744794125956,1.27889502,1575.7,1575.6,2.91045]
[1744794126157,1.27889502,1575.7,1575.6,1.641]
[1744794126361,1.26945,1575.6,1575.5,1.26948]
[1744794126559,2.90015,1575.6,1575.5,2.99108]
[1744794129257,0.86562502,1575.7,1575.6,1.26945]
[1744794129258,0.00952502,1575.7,1575.6,1.26945]
[1744794129463,0.00952502,1575.7,1575.6,3.02045]
[1744794129766,1.27889502,1575.7,1575.6,3.02045]
[1744794131065,0.00952502,1575.7,1575.6,6.22825]
[1744794131263,1.27889502,1575.7,1575.6,6.22825]
[1744794131661,1.27889502,1575.7,1575.6,3.02045]
[1744794132061,0.00952502,1575.7,1575.6,3.02045]
[1744794132461,1.27889502,1575.7,1575.6,3.02045]
[1744794135277,0.00952502,1575.7,1575.6,3.02045]
[1744794135770,1.27889502,1575.7,1575.6,3.02045]
[1744794137876,2.91179502,1575.7,1575.6,3.02045]
[1744794138273,2.91179502,1575.7,1575.6,1.26945]
[1744794138574,1.64242502,1575.7,1575.6,1.26945]
[1744794138775,0.00952502,1575.7,1575.6,2.98035]
[1744794138977,0.09582459,1575.7,1575.6,6.18815]
[1744794139179,0.09582459,1575.7,1575.6,2.98035]
[1744794140069,0.09582459,1575.7,1575.6,10.98115]
[1744794140274,0.09582459,1575.7,1575.6,15.98115]
[1744794140477,0.09582459,1575.7,1575.6,57.25203793]
[1744794140676,0.09582459,1575.7,1575.6,57.25199972]
[1744794140975,0.09582459,1575.7,1575.6,56.78115]
[1744794141376,0.09582459,1575.7,1575.6,57.25194364]
[1744794141573,0.09582459,1575.7,1575.6,56.78115]
[1744794141977,0.09582459,1575.7,1575.6,57.25193428]
[1744794142679,1.26912,1576.1,1576.0,1.26913]
[1744794142972,1.26901,1576.2,1576.1,1.26905]